bitfinex/quotes_ETHUSD_20250508
["timestamp","ask_amount","ask_price","bid_price","bid_amount"]
[1746739558780,4.52523281,2209.9,2209.3,17.0767]
[1746739558985,4.52546375,2209.8,2209.3,17.0767]
[1746739559184,4.52523973,2209.9,2209.3,17.0767]
[1746739559385,6.959,2210.4,2209.3,17.0767]
[1746739560126,4.52611568,2209.4,2209.3,17.0767]
[1746739560487,4.52611568,2209.4,2208.3,9.7377138]
[1746739560488,4.52755014,2208.7,2208.6,23.302]
[1746739566003,4.52737968,2208.8,2207.9,6.989]
[1746739566203,4.52869756,2208.2,2207.9,6.989]
[1746739566702,4.52837216,2208.3,2207.9,6.989]
[1746739566940,4.52737968,2208.8,2207.9,6.989]
[1746739566941,4.5289855,2208.0,2207.9,6.989]
[1746739567132,4.52782118,2208.6,2207.9,6.989]
[1746739567458,4.52816518,2208.4,2207.9,6.989]
[1746739567666,4.52734516,2208.8,2207.9,6.989]
[1746739567667,4.52894985,2208.1,2207.9,6.989]
[1746739568179,4.52858798,2208.2,2207.9,6.989]
[1746739568328,4.52847384,2208.3,2207.9,6.989]
[1746739568528,4.52858122,2208.2,2207.9,6.989]
[1746739569573,4.52769516,2208.7,2207.9,6.989]
[1746739569744,0.1694,2210.6,2207.9,6.989]
[1746739569745,4.52652543,2209.2,2207.9,6.989]
[1746739569940,4.52826944,2208.4,2207.9,11.5180456]
[1746739570141,4.52780695,2208.6,2208.0,4.52888096]
[1746739570462,4.52693526,2209.0,2207.9,6.989]
[1746739570769,4.52658847,2209.2,2207.9,6.989]
[1746739570770,6.941,2208.9,2207.9,6.989]
[1746739571078,4.52871059,2208.2,2207.9,6.989]
[1746739571378,4.5278409,2208.6,2207.9,6.989]
[1746739571540,4.5286971,2208.2,2207.9,6.989]
[1746739571746,4.52939577,2207.8,2207.7,16.31]
[1746739573461,4.52922337,2207.9,2207.7,16.31]
[1746739573665,4.52939577,2207.8,2207.7,16.31]
[1746739574567,4.5293132,2207.9,2207.7,16.31]
[1746739574875,6.935,2208.8,2207.9,0.8062]
[1746739575077,4.52827516,2208.4,2208.1,7.00207471]
[1746739575281,4.528042,2208.5,2208.2,6.946]
[1746739575445,4.52810235,2208.5,2208.2,6.946]
[1746739575642,4.52818077,2208.4,2208.2,6.946]
[1746739575880,4.52837023,2208.3,2208.2,6.946]
[1746739576078,4.52935635,2207.9,2207.7,16.0251499]
[1746739576384,4.52919063,2207.9,2207.8,0.8062]
[1746739576581,4.52939577,2207.8,2207.7,16.0251499]
[1746739580246,4.53083231,2207.1,2207.0,7.77467471]
[1746739580757,4.5310376,2207.0,2206.9,6.947]
[1746739580971,4.53083231,2207.1,2206.9,6.947]
[1746739580972,4.53083231,2207.1,2206.9,7.7196]
[1746739581159,6.924,2208.2,2207.0,7.00207471]
[1746739581361,4.53071932,2207.2,2206.9,6.947]
[1746739581553,4.53063801,2207.2,2206.9,6.947]
[1746739581750,0.8005,2208.0,2206.9,6.947]
[1746739581967,4.53001532,2207.5,2207.0,4.53102571]
[1746739582167,4.53025838,2207.4,2207.0,0.7726]
[1746739582585,4.52919063,2207.9,2207.0,0.7726]
[1746739582960,4.53014348,2207.5,2207.0,5.30351189]
[1746739583251,0.8005,2208.0,2207.0,0.7726]
[1746739583453,4.52939577,2207.8,2207.0,0.7726]
[1746739583677,4.52939577,2207.8,2207.2,4.53056986]
[1746739583888,4.52923199,2207.9,2207.2,7.00207471]
[1746739584193,6.947,2208.9,2207.2,7.00207471]
[1746739584194,0.8005,2209.2,2207.8,7.00207471]
[1746739584490,4.52682049,2209.1,2208.5,0.7726]
[1746739584696,4.52682049,2209.1,2208.5,5.30045558]
[1746739584855,4.52705111,2209.0,2208.5,5.30045558]
[1746739585059,0.8005,2209.6,2208.5,0.7726]
[1746739585268,4.52702833,2209.0,2208.5,0.7726]
[1746739585482,4.52696396,2209.0,2208.5,5.30044772]
[1746739585718,4.52612416,2209.4,2208.5,0.7726]
[1746739585993,4.52711341,2209.0,2208.5,5.30056004]
[1746739586197,4.52598139,2209.5,2208.5,0.7726]
[1746739586401,4.52677957,2209.1,2208.6,4.52772728]
[1746739586709,4.52570601,2209.6,2208.3,7.00207471]
[1746739587013,4.52722444,2208.9,2208.3,7.00207471]
[1746739587198,4.52701728,2209.0,2208.3,7.00207471]
[1746739587374,4.5272813,2208.9,2208.4,4.52814414]
[1746739587570,4.52695614,2209.0,2208.4,4.52814414]
[1746739587794,4.52695614,2209.0,2208.5,4.52793542]
[1746739587966,4.5266828,2209.2,2208.3,7.00207471]
[1746739588307,6.915,2209.7,2208.8,0.7726]
[1746739588506,4.52570967,2209.6,2209.1,4.52664286]
[1746739588673,7.7095,2210.1,2209.2,16.314]
[1746739588871,4.52488687,2210.0,2209.2,16.314]
[1746739589074,4.52632055,2209.3,2209.2,16.314]
[1746739589583,3.8005,2210.1,2209.2,16.314]
[1746739589895,0.8005,2210.1,2209.2,16.314]
[1746739590214,4.52632055,2209.3,2209.2,16.314]
[1746739590578,15.23118785,2210.1,2209.2,16.314]
[1746739590782,4.52632055,2209.3,2209.2,16.314]
[1746739590988,4.52612136,2209.4,2209.2,16.314]
[1746739591319,4.52632055,2209.3,2209.2,16.314]
[1746739591723,0.8321,2210.8,2209.0,16.312]
[1746739592018,0.1,2211.5,2210.0,0.7549]
[1746739592019,4.52288186,2211.0,2210.0,0.7549]
[1746739592222,6.9,2211.1,2210.1,6.946]
[1746739592421,4.52447742,2210.2,2210.1,6.946]
[1746739592722,4.52447742,2210.2,2208.6,4.52759971]
[1746739592723,4.52697544,2209.0,2208.8,6.946]
[1746739592919,4.5271402,2208.9,2208.8,6.946]
[1746739593284,4.52550119,2209.7,2208.8,6.946]
[1746739593601,4.52683147,2209.1,2208.8,6.946]
[1746739593939,4.52629209,2209.4,2208.8,6.946]
[1746739594109,4.52626104,2209.4,2208.8,6.946]
[1746739594423,4.52633774,2209.3,2208.8,11.47324858]
[1746739594720,4.52600417,2209.5,2209.0,4.52693419]
[1746739594924,4.52600417,2209.5,2209.1,16.31]
[1746739595122,4.52427272,2210.3,2209.2,0.8086]
[1746739595292,4.52447742,2210.2,2209.2,0.8086]
[1746739595492,3.7568,2210.5,2209.2,0.8086]
[1746739595692,3.7568,2210.5,2209.4,4.52609136]
[1746739595693,4.52488125,2210.1,2209.4,4.52609136]
[1746739595919,0.1694,2210.6,2210.0,4.52487316]
[1746739596214,4.69316461,2210.6,2210.1,11.4706106]
[1746739596428,4.69316461,2210.6,2210.2,16.31]
[1746739596630,0.1694,2210.6,2210.2,16.31]
[1746739596785,0.1694,2210.6,2210.4,4.52397355]
[1746739597118,0.1694,2210.6,2210.5,6.944]
[1746739597317,4.69305873,2210.6,2210.5,6.944]
[1746739597505,4.52427272,2210.3,2210.2,16.31]
[1746739597684,4.52427272,2210.3,2209.6,6.944]
[1746739597685,4.52565528,2209.7,2209.6,6.944]
[1746739598125,4.52550119,2209.7,2209.6,6.944]
[1746739598696,4.52447742,2210.2,2209.6,6.944]
[1746739598897,4.52515599,2209.9,2209.6,6.944]
[1746739599693,4.5244141,2210.3,2209.8,0.8171]
[1746739599893,4.52399261,2210.5,2209.8,5.34223259]
[1746739600122,4.52411004,2210.4,2209.9,4.52509163]
[1746739600328,0.1694,2210.6,2209.8,0.8171]
[1746739600496,4.52462108,2210.2,2209.8,0.8171]
[1746739600904,4.52444929,2210.3,2209.8,5.34238476]
[1746739601335,4.52418517,2210.4,2209.9,4.52501809]
[1746739601641,4.69315702,2210.6,2210.1,4.52466399]
[1746739602062,4.69315702,2210.6,2209.9,7.55207471]
[1746739602063,0.1694,2210.6,2210.2,4.52430333]
[1746739602333,4.52408595,2210.4,2209.8,5.34236758]
[1746739602639,0.1694,2210.6,2209.8,0.8171]
[1746739602804,4.69324047,2210.6,2209.8,0.8171]
[1746739603004,4.69324047,2210.6,2210.0,0.55]
[1746739603005,0.1694,2210.6,2210.0,0.55]
[1746739603205,0.1694,2210.6,2209.9,7.00207471]
[1746739603405,4.52397899,2210.5,2210.0,4.52478111]
[1746739603608,4.69325297,2210.6,2210.0,4.52472754]
[1746739603937,4.52440933,2210.3,2209.9,7.00207471]
[1746739604140,4.52416409,2210.4,2209.9,11.52714455]
[1746739604311,0.1694,2210.6,2209.9,7.00207471]
[1746739604635,0.1694,2210.6,2209.9,11.52706319]
[1746739604938,4.52421421,2210.4,2209.9,11.52707949]
[1746739605441,0.1694,2210.6,2209.6,6.944]
[1746739605442,4.52490301,2210.0,2209.6,6.944]
[1746739605628,4.52471055,2210.1,2209.7,0.806]
[1746739605840,4.52441582,2210.3,2209.7,0.806]
[1746739606041,4.52458263,2210.2,2209.7,5.33149725]
[1746739606224,4.52441582,2210.3,2209.8,4.52528017]
[1746739606225,4.52438168,2210.3,2209.8,4.52528017]
[1746739606557,4.52431449,2210.3,2209.8,5.07522414]
[1746739607067,0.1694,2210.6,2210.5,4.52386337]
[1746739607415,4.52205614,2211.4,2210.5,6.883]
[1746739607618,4.52299812,2211.0,2210.5,11.40671091]
[1746739607849,4.52352282,2210.7,2210.5,23.184]
[1746739608048,4.52365873,2210.6,2210.5,23.184]
[1746739608849,4.52365873,2210.6,2209.8,6.882]
[1746739609054,11.38152282,2210.7,2209.8,6.882]
[1746739609055,4.52509163,2209.9,2209.8,6.882]
[1746739609261,4.53158963,2209.9,2209.8,6.882]
[1746739610848,0.006498,2209.9,2209.8,6.882]
[1746739611219,0.006498,2209.9,2209.8,11.4072964]
[1746739611419,0.006498,2209.9,2209.8,13.87052604]
[1746739611621,4.52202224,2211.4,2210.5,4.52381204]
[1746739611921,4.52275394,2211.1,2210.6,4.52362006]
[1746739612117,4.52243606,2211.2,2210.7,11.40534328]
[1746739612318,4.52255271,2211.2,2210.7,11.40541624]
[1746739612656,7.647,2211.5,2210.7,6.882]
[1746739612820,4.52298104,2211.0,2210.7,6.882]
[1746739613218,4.52261031,2211.2,2210.7,6.882]
[1746739613438,4.5227828,2211.1,2210.7,6.882]
[1746739613676,4.52234653,2211.3,2210.7,6.882]
[1746739613863,6.845,2211.4,2210.7,6.882]
[1746739614064,4.52276004,2211.1,2210.7,6.882]
[1746739614363,4.52253932,2211.2,2210.7,11.40529754]
[1746739614678,4.52253582,2211.2,2210.7,6.882]
[1746739614980,4.52267942,2211.1,2210.7,6.882]
[1746739615278,4.52137584,2211.8,2210.7,6.882]
[1746739615583,6.839,2212.2,2211.3,0.8162]
[1746739615766,0.7666,2212.3,2211.3,0.8162]
[1746739615942,4.52084548,2212.0,2211.3,0.8162]
[1746739616142,0.7666,2212.3,2211.3,0.8162]
[1746739616445,4.52106099,2211.9,2211.3,5.33829756]
[1746739617046,5.28622366,2212.6,2211.3,0.8162]
[1746739617255,4.52044474,2212.2,2211.6,4.5214404]
[1746739617443,4.52058254,2212.2,2211.7,6.881]
[1746739617639,4.52051198,2212.2,2211.8,16.295]
[1746739617857,4.52100004,2211.9,2211.8,16.295]
[1746739619747,4.52094093,2212.0,2211.8,16.295]
[1746739619952,4.51994617,2212.5,2211.8,16.295]
[1746739620254,6.826,2212.4,2211.8,16.295]
[1746739620910,4.52100004,2211.9,2211.8,16.295]
[1746739621104,12.09858225,2213.0,2211.8,16.295]
[1746739621269,4.5199181,2212.5,2211.8,16.295]
[1746739621464,7.5798,2213.0,2212.0,0.7681]
[1746739621904,4.51950605,2212.7,2212.0,0.7681]
[1746739622202,7.5798,2213.0,2211.8,16.295]
[1746739622203,3.0,2212.8,2211.8,16.295]
[1746739622407,4.52100004,2211.9,2211.8,16.295]
[1746739623204,4.52140887,2211.7,2211.6,6.879]
[1746739625767,4.52134475,2211.8,2211.6,6.879]
[1746739625962,4.52104834,2211.9,2211.6,6.879]
[1746739626167,4.5203252,2212.3,2211.6,6.879]
[1746739626459,4.52074807,2212.1,2211.6,6.879]
[1746739626699,4.52077473,2212.1,2211.6,6.879]
[1746739626902,4.52074185,2212.1,2211.6,6.879]
[1746739627402,4.52046183,2212.2,2211.7,4.52140887]
[1746739628170,0.8289,2212.6,2211.6,6.879]
[1746739628367,7.6299,2213.0,2211.6,6.879]
[1746739628599,4.52048429,2212.2,2211.6,6.879]
[1746739628905,4.51936548,2212.7,2211.6,6.879]
[1746739629203,4.52096829,2212.0,2211.6,6.879]
[1746739629367,4.5199783,2212.4,2211.6,6.879]
[1746739629564,0.8289,2212.4,2211.6,6.879]
[1746739629770,11.31699794,2212.4,2211.6,6.879]
[1746739630066,4.52140887,2211.7,2211.6,6.879]
[1746739630710,4.52140887,2211.7,2210.9,6.801]
[1746739630711,4.52243125,2211.2,2210.9,6.801]
[1746739631003,4.52265607,2211.1,2210.9,6.801]
[1746739631172,3.8289,2211.9,2210.9,6.801]
[1746739631369,4.52280696,2211.1,2210.9,6.801]
[1746739632180,4.52241874,2211.3,2210.9,6.801]
[1746739632384,4.52179862,2211.6,2210.9,6.801]
[1746739632570,4.52038694,2212.2,2210.9,6.801]
[1746739632771,4.52116359,2211.9,2211.0,4.52284034]
[1746739632972,4.52126258,2211.8,2211.3,4.52207409]
[1746739633396,0.33222286,2212.1,2211.1,0.7908]
[1746739633572,4.52048703,2212.2,2211.2,7.55207471]
[1746739633781,4.52001886,2212.4,2211.9,4.52094456]
[1746739633973,4.52007343,2212.4,2212.1,0.7908]
[1746739634173,4.52020731,2212.3,2212.1,0.7908]
[1746739634374,11.30375349,2213.0,2212.1,0.7908]
[1746739634621,4.51895702,2212.9,2212.1,0.7908]
[1746739634812,4.52030138,2212.3,2212.1,0.7908]
[1746739635108,4.52059129,2212.1,2212.0,23.092]
[1746739635523,4.52222674,2211.3,2211.2,0.7908]
[1746739635686,4.52243125,2211.2,2211.1,16.291]
[1746739636993,4.8589286,2211.2,2211.1,16.291]
[1746739637392,4.52100492,2211.9,2211.1,16.291]
[1746739637393,4.52172256,2211.6,2211.1,16.291]
[1746739637595,4.52166363,2211.6,2211.2,0.7908]
[1746739637900,4.52150008,2211.7,2211.2,0.7908]
[1746739638211,4.52150008,2211.7,2211.2,5.31311154]
[1746739638573,0.33554746,2211.9,2211.1,16.291]
[1746739638770,4.52120444,2211.8,2211.2,6.801]
[1746739638988,4.52190886,2211.5,2211.2,6.801]
[1746739639419,4.52171584,2211.6,2211.2,6.801]
[1746739639584,4.521001,2211.9,2211.2,6.801]
[1746739639788,4.52160472,2211.7,2211.2,6.801]
[1746739639977,4.52172274,2211.6,2211.2,6.801]
[1746739640175,4.5217874,2211.6,2211.3,0.7908]
[1746739640482,4.52142958,2211.7,2211.3,0.7908]
[1746739640706,4.52132188,2211.8,2211.3,5.31300684]
[1746739641086,4.51997681,2212.5,2211.3,0.7908]
[1746739641290,4.52018261,2212.3,2211.3,0.7908]
[1746739641813,4.52157433,2211.7,2211.3,0.7908]
[1746739642134,4.52199244,2211.5,2211.3,0.7908]
[1746739642321,4.52194033,2211.5,2211.3,0.7908]
[1746739642618,4.52038694,2212.2,2211.3,0.7908]
[1746739642786,4.52202224,2211.4,2211.3,0.7908]
[1746739642993,4.52170522,2211.6,2211.3,0.7908]
[1746739643607,4.52079566,2212.0,2211.3,0.7908]
[1746739643804,5.27299979,2211.9,2211.1,16.291]
[1746739644007,4.52243125,2211.2,2211.1,16.291]
[1746739645335,4.52120444,2211.8,2211.1,16.291]
[1746739645533,4.52243125,2211.2,2211.1,16.291]
[1746739645734,4.52202541,2211.4,2211.1,16.291]
[1746739645896,4.52223699,2211.3,2211.1,16.291]
[1746739646092,4.52213554,2211.4,2211.1,16.291]
[1746739646330,4.5201197,2212.4,2211.2,0.7958]
[1746739646532,4.52090466,2212.0,2211.5,4.52175537]
[1746739647346,4.52070687,2212.1,2211.5,4.52181777]
[1746739647507,4.52070687,2212.1,2211.6,4.52147934]
[1746739647837,4.52062845,2212.1,2211.6,4.52150276]
[1746739648005,4.5212471,2211.8,2211.3,4.52222674]
[1746739648202,4.52105672,2211.9,2211.4,4.52196831]
[1746739648403,4.52134138,2211.8,2211.3,4.52217451]
[1746739648643,4.51981663,2212.5,2211.2,5.31818657]
[1746739648835,4.52119667,2211.9,2211.3,4.52211285]
[1746739649009,0.8233,2212.0,2211.1,16.291]
[1746739649356,4.52243125,2211.2,2211.1,23.091]
[1746739649504,0.7672,2212.9,2211.6,5.33013564]
[1746739649699,4.52001713,2212.4,2211.9,4.5209114]
[1746739649906,0.7672,2213.2,2212.0,6.8]
[1746739650145,0.7672,2213.2,2212.0,11.32068857]
[1746739650146,4.51975826,2212.6,2212.0,11.32068857]
[1746739650304,4.51994853,2212.5,2212.0,11.32068857]
[1746739650507,4.51966926,2212.6,2212.1,4.52058023]
[1746739650796,0.7672,2213.2,2212.2,20.80838662]
[1746739651019,4.51938444,2212.7,2212.3,0.8087]
[1746739651518,4.51975473,2212.6,2212.3,0.8087]
[1746739651719,4.51969618,2212.6,2212.3,0.8087]
[1746739651928,4.51969618,2212.6,2212.2,16.288]
[1746739651929,0.7672,2213.2,2212.2,16.288]
[1746739652154,4.51967503,2212.6,2212.2,16.288]
[1746739652349,4.51978502,2212.5,2212.2,16.288]
[1746739652658,4.52018261,2212.3,2212.2,16.288]
[1746739652859,4.52171641,2211.6,2211.4,0.8087]
[1746739653064,4.52171641,2211.6,2211.5,6.8]
[1746739653363,0.22688088,2213.5,2211.8,0.8087]
[1746739653659,0.22688088,2213.5,2211.5,7.48499962]
[1746739653660,4.51773209,2213.5,2212.3,4.52006548]
[1746739653818,4.51936711,2212.7,2212.3,0.8087]
[1746739654019,4.51928771,2212.8,2212.3,0.8087]
[1746739654343,4.51954803,2212.7,2212.3,0.8087]
[1746739654543,4.51921481,2212.8,2212.3,0.8087]
[1746739655063,6.72,2213.3,2212.3,0.8087]
[1746739655217,4.51891627,2213.0,2212.3,5.32881247]
[1746739655661,4.51910192,2212.9,2212.3,5.32887538]
[1746739655857,4.51910192,2212.9,2212.3,0.8087]
[1746739656059,0.22257203,2213.5,2212.3,0.8087]
[1746739656357,4.51907721,2212.9,2212.3,0.8087]
[1746739656563,4.51907721,2212.9,2212.3,5.32887081]
[1746739656757,4.51907721,2212.9,2212.3,0.8087]
[1746739656958,4.51907721,2212.9,2212.3,5.32882993]
[1746739657553,4.51907721,2212.9,2212.3,0.8087]
[1746739657825,4.51899936,2212.9,2212.3,0.8087]
[1746739658027,4.51899936,2212.9,2212.3,5.32887012]
[1746739658325,4.51867772,2213.1,2212.3,5.32887012]
[1746739658532,4.51897959,2212.9,2212.3,5.32887012]
[1746739658873,4.5199783,2212.4,2212.3,0.8087]
[1746739659045,4.51985755,2212.5,2212.3,0.8087]
[1746739659240,4.51980691,2212.5,2212.3,0.8087]
[1746739659743,4.51896606,2212.9,2212.3,0.8087]
[1746739659744,4.5199783,2212.4,2212.3,0.8087]
[1746739659931,4.51990924,2212.5,2212.3,0.8087]
[1746739660127,4.5199783,2212.4,2212.3,0.8087]
[1746739660357,4.51874155,2213.1,2212.0,0.7879]
[1746739660554,4.51974763,2212.6,2212.0,0.7879]
[1746739660772,4.51834447,2213.2,2212.0,0.7879]
[1746739660957,4.51999073,2212.4,2212.0,0.7879]
[1746739661162,4.51834447,2213.2,2212.0,5.30867147]
[1746739661472,4.51834447,2213.2,2212.0,0.7879]
[1746739661685,5.3488772,2213.3,2212.3,4.52011413]
[1746739661977,4.51899357,2212.9,2212.3,4.52011413]
[1746739662637,4.51899357,2212.9,2212.4,16.284]
[1746739662969,4.51919506,2212.8,2212.4,16.284]
[1746739663432,4.51835898,2213.2,2212.4,16.284]
[1746739663833,4.51914398,2212.9,2212.4,16.284]
[1746739664054,4.51916279,2212.8,2212.4,16.284]
[1746739664372,4.51854864,2213.1,2212.4,16.284]
[1746739664549,5.34898955,2213.3,2212.4,16.284]
[1746739664738,4.51938076,2212.7,2212.4,16.284]
[1746739664938,0.8307,2213.3,2212.4,16.284]
[1746739665152,4.51889298,2213.0,2212.5,0.8215]
[1746739665667,4.51878755,2213.0,2212.5,0.8215]
[1746739665832,4.51908881,2212.9,2212.5,0.8215]
[1746739666364,4.51918921,2212.8,2212.5,0.8215]
[1746739666572,11.42829515,2213.6,2212.5,5.3412581]
[1746739666573,4.51843289,2213.2,2212.5,5.3412581]
[1746739666748,4.51879442,2213.0,2212.5,5.3412581]
[1746739666943,4.51693071,2213.9,2212.6,0.8215]
[1746739667178,4.51847535,2213.2,2212.7,6.708]
[1746739667379,4.51858608,2213.1,2212.7,6.708]
[1746739667547,4.517528,2213.6,2212.6,0.8215]
[1746739667863,4.51848222,2213.2,2212.8,6.708]
[1746739668065,4.517528,2213.6,2212.8,6.708]
[1746739668273,4.51909945,2212.9,2212.7,6.708]
[1746739668432,0.7515,2213.7,2212.7,6.708]
[1746739668433,4.51857979,2213.1,2212.7,6.708]
[1746739668639,0.7515,2213.7,2212.7,6.708]
[1746739668640,4.517528,2213.6,2212.7,6.708]
[1746739669071,4.51862885,2213.1,2212.7,6.708]
[1746739669378,4.5184654,2213.2,2212.7,6.708]
[1746739669744,4.5175295,2213.6,2212.7,6.708]
[1746739669958,4.51909413,2212.9,2212.7,6.708]
[1746739670277,4.51817697,2213.3,2212.7,6.708]
[1746739670436,4.51916124,2212.8,2212.7,6.708]
[1746739670951,4.51906529,2212.9,2212.7,6.708]
[1746739671133,4.51916124,2212.8,2212.7,6.708]
[1746739671548,4.51835339,2213.2,2212.7,6.708]
[1746739671869,4.51936548,2212.7,2212.4,16.284]
[1746739672060,4.51977401,2212.5,2212.4,16.284]
[1746739673838,0.7515,2213.1,2212.4,16.284]
[1746739673839,4.51944876,2212.7,2212.4,16.284]
[1746739674143,4.51937295,2212.7,2212.4,16.284]
[1746739674371,4.51913507,2212.9,2212.5,0.8215]
[1746739674839,4.51773209,2213.5,2212.5,0.8215]
[1746739675043,4.51909543,2212.9,2212.5,0.8215]
[1746739675263,4.51932473,2212.8,2212.5,0.8215]
[1746739675567,4.51956973,2212.6,2212.5,0.8215]
[1746739675738,4.51861938,2213.1,2212.5,0.8215]
[1746739675938,4.51956973,2212.6,2212.5,0.8215]
[1746739678580,4.51936689,2212.7,2212.5,7.5285]
[1746739678775,4.51956973,2212.6,2212.5,7.5285]
[1746739678981,4.51956973,2212.6,2212.5,6.707]
[1746739679288,4.52018261,2212.3,2212.2,0.7541]
[1746739679782,4.51956973,2212.6,2211.7,11.2282224]
[1746739679784,0.814,2212.6,2211.8,0.793]
[1746739679940,4.52099159,2212.0,2211.8,0.793]
[1746739680141,4.52100004,2211.9,2211.8,0.793]
[1746739680444,4.52120444,2211.8,2211.7,6.707]
[1746739681870,4.52181777,2211.5,2211.4,16.281]
[1746739682382,4.52181777,2211.5,2211.4,11.781]
[1746739683955,4.52140887,2211.7,2210.6,5.31655336]
[1746739684169,4.52316256,2210.9,2210.7,6.709]
[1746739684374,4.52316571,2210.9,2210.7,6.709]
[1746739684576,4.52243125,2211.2,2210.7,6.709]
[1746739684777,4.5232495,2210.8,2210.7,6.709]
[1746739684980,4.5234541,2210.7,2210.5,16.286]
[1746739685162,4.52365873,2210.6,2210.5,16.286]
[1746739686261,4.52447742,2210.2,2210.1,6.709]
[1746739687179,4.52560074,2209.7,2209.5,16.286]
[1746739687387,4.52539167,2209.8,2209.5,16.286]
[1746739687697,4.52570601,2209.6,2209.5,16.286]
[1746739687892,4.52591083,2209.5,2209.4,6.71]
[1746739688358,4.52663981,2209.2,2208.9,0.775]
[1746739688561,4.52679792,2209.1,2208.9,0.775]
[1746739688812,6.609,2209.5,2208.9,0.775]
[1746739688988,6.607,2210.3,2209.6,0.775]
[1746739689186,0.7937,2211.2,2209.9,0.775]
[1746739689505,0.7937,2211.5,2210.5,0.775]
[1746739689708,0.7937,2212.0,2210.6,6.61]
[1746739689891,4.5219168,2211.5,2210.9,4.52289773]
[1746739690099,6.604,2211.7,2211.2,0.775]
[1746739690408,4.52182841,2211.5,2211.2,0.775]
[1746739690612,4.52222674,2211.3,2211.2,0.775]
[1746739690817,4.52264521,2211.1,2210.9,16.295]
[1746739691107,4.52284034,2211.0,2210.9,16.295]
[1746739691706,4.5234541,2210.7,2210.6,6.61]
[1746739693685,4.52468214,2210.1,2210.0,16.295]
[1746739694825,4.52451832,2210.2,2209.8,6.612]
[1746739694826,4.52509163,2209.9,2209.8,6.612]
[1746739697497,4.52632055,2209.3,2209.2,0.7736]
[1746739697931,4.52652543,2209.2,2209.1,22.908]
[1746739700041,4.52755014,2208.7,2208.4,6.614]
[1746739700334,4.52796015,2208.5,2208.4,6.614]
[1746739704647,9.559,2209.1,2208.4,6.614]
[1746739704813,4.5276428,2208.7,2208.4,6.614]
[1746739705135,4.52788624,2208.6,2208.4,6.614]
[1746739705304,4.5276525,2208.7,2208.4,6.614]
[1746739705503,4.52796015,2208.5,2208.4,6.614]
[1746739707559,4.52764185,2208.7,2208.4,6.614]
[1746739708062,0.8029,2209.2,2208.5,0.8112]
[1746739708232,5.32945386,2209.2,2208.5,0.8112]
[1746739708431,4.52730499,2208.9,2208.4,11.14211537]
[1746739708759,6.88141511,2209.3,2208.4,6.614]
[1746739708941,5.32157558,2209.5,2208.5,3.0]
[1746739708942,0.7955,2209.5,2208.5,3.0]
[1746739709264,6.541,2209.7,2208.6,0.8112]
[1746739709418,6.541,2209.7,2208.7,0.55]
[1746739709629,4.52636461,2209.3,2208.8,4.52718817]
[1746739710067,4.52636461,2209.3,2208.7,5.07750145]
[1746739710230,4.52653022,2209.2,2208.8,4.5272489]
[1746739710722,4.52675179,2209.1,2208.7,0.55]
[1746739710924,4.52611568,2209.4,2208.6,0.8112]
[1746739711149,4.52755014,2208.7,2208.6,0.8112]
[1746739713864,4.52745887,2208.8,2208.6,0.8112]
[1746739714234,4.52750505,2208.8,2208.6,0.8112]
[1746739714471,4.52755014,2208.7,2208.6,0.8112]
[1746739714668,6.526,2209.2,2208.6,0.8112]
[1746739714669,4.5272371,2208.9,2208.6,0.8112]
[1746739714877,4.52729295,2208.9,2208.6,0.8112]
[1746739715079,4.52651259,2209.3,2208.6,0.8112]
[1746739715276,4.52706533,2209.0,2208.6,0.8112]
[1746739715485,4.52722729,2208.9,2208.6,0.8112]
[1746739715869,4.52671332,2209.2,2208.7,4.5275229]
[1746739716040,4.52713813,2209.0,2208.6,0.8112]
[1746739716239,4.52708349,2209.0,2208.6,0.8112]
[1746739716668,4.52708349,2209.0,2208.6,5.33895017]
[1746739716876,4.52708349,2209.0,2208.6,0.8112]
[1746739717249,4.52708349,2209.0,2208.6,5.33893094]
[1746739717451,4.52708349,2209.0,2208.6,0.8112]
[1746739717664,4.52659584,2209.2,2208.7,4.52736744]
[1746739718278,4.52676194,2209.1,2208.7,4.52736744]
[1746739718600,4.52693905,2209.0,2208.6,0.8112]
[1746739719048,4.76172754,2209.4,2208.6,0.8112]
[1746739719049,4.52755014,2208.7,2208.6,0.8112]
[1746739719867,4.52743896,2208.8,2208.6,0.8112]
[1746739720071,0.8238,2209.1,2208.4,6.614]
[1746739720274,4.52783808,2208.6,2208.4,6.614]
[1746739720469,4.52796015,2208.5,2208.4,6.614]
[1746739720999,4.52857531,2208.2,2208.1,0.7509]
[1746739721197,4.52958524,2207.8,2207.7,6.504]
[1746739722266,4.52856807,2208.3,2207.7,6.504]
[1746739722496,4.52920869,2207.9,2207.7,6.504]
[1746739723293,4.52939577,2207.8,2207.7,6.504]
[1746739729566,5.32119577,2207.8,2207.7,6.504]
[1746739730911,4.52939577,2207.8,2207.7,6.504]
[1746739733236,4.52939577,2207.8,2205.5,2.85477011]
[1746739733237,0.7848,2207.8,2205.5,2.85477011]
[1746739733437,0.33178469,2208.2,2206.3,6.97495211]
[1746739733438,4.53063284,2207.2,2206.3,6.97495211]
[1746739733598,4.53063284,2207.2,2206.1,0.8133]
[1746739733599,4.53154384,2206.8,2206.4,6.97495211]
[1746739733795,4.53174572,2206.7,2206.4,6.97495211]
[1746739733992,6.449,2207.2,2206.2,0.04532196]
[1746739733993,0.7848,2207.0,2206.2,0.04532196]
[1746739734303,4.53167097,2206.7,2206.3,6.97495211]
[1746739734507,4.53120484,2207.0,2206.3,7.02027421]
[1746739734708,4.53126663,2206.9,2206.6,6.97495211]
[1746739734917,4.53042178,2207.3,2206.6,3.0]
[1746739735123,4.53114156,2207.0,2206.6,3.0]
[1746739735309,4.53042178,2207.3,2206.4,0.798]
[1746739735507,4.53184329,2206.7,2206.4,0.798]
[1746739735897,4.53150339,2206.8,2206.4,0.798]
[1746739736835,4.53127146,2206.9,2206.4,5.3302253]